[Event "Live Chess"]
[Site "Chess.com"]
[Date "2021.03.17"]
[Round "4"]
[White "DoctorBanner"]
[Black "Kondsaga"]
[Result "1/2-1/2"]
[CurrentPosition "8/3q1pk1/2p2n1p/ppPpQN2/3P2P1/3P3P/P5K1/8 b - -"]
[Timezone "UTC"]
[ECO "B02"]
[ECOUrl "https://www.chess.com/openings/Alekhines-Defense-2.Nc3"]
[UTCDate "2021.03.17"]
[UTCTime "03:06:08"]
[WhiteElo "1700"]
[BlackElo "1934"]
[TimeControl "2100+2"]
[Termination "Game drawn by repetition"]
[StartTime "03:06:08"]
[EndDate "2021.03.17"]
[EndTime "04:16:03"]
[Link "https://www.chess.com/game/live/9689151403"]

1. e4 {[%clk 0:35:00.3]} 1... Nf6 {[%clk 0:34:53.6]} 2. Nc3 {[%clk 0:34:51.1]} 2... e6 {[%clk 0:34:48.6]} 3. d4 {[%clk 0:34:49.9]} 3... d5 {[%clk 0:34:42]} 4. exd5 {[%clk 0:34:19.1]} 4... exd5 {[%clk 0:34:39.7]} 5. Nf3 {[%clk 0:34:19.6]} 5... Bd6 {[%clk 0:34:15.2]} 6. Bd3 {[%clk 0:34:05.2]} 6... O-O {[%clk 0:34:10.2]} 7. O-O {[%clk 0:34:05.1]} 7... c6 {[%clk 0:33:43.2]} 8. h3 {[%clk 0:33:40.2]} 8... h6 {[%clk 0:33:23.2]} 9. Be3 {[%clk 0:33:00.2]} 9... Qc7 {[%clk 0:33:07.3]} 10. Qd2 {[%clk 0:32:33.9]} 10... Re8 {[%clk 0:30:30.9]} 11. Rfe1 {[%clk 0:30:50.2]} 11... Ne4 {[%clk 0:28:51.2]} 12. Qd1 {[%clk 0:29:36.9]} 12... Bf5 {[%clk 0:26:19.3]} 13. Nd2 {[%clk 0:27:53]} 13... Nxc3 {[%clk 0:23:21.2]} 14. bxc3 {[%clk 0:27:52.8]} 14... Bxd3 {[%clk 0:23:19.8]} 15. cxd3 {[%clk 0:27:54.7]} 15... Nd7 {[%clk 0:22:57.5]} 16. c4 {[%clk 0:26:10.2]} 16... Nf6 {[%clk 0:22:10.5]} 17. Qf3 {[%clk 0:25:53.9]} 17... Re6 {[%clk 0:20:30.3]} 18. Nb3 {[%clk 0:22:27.4]} 18... Bb4 {[%clk 0:17:37.7]} 19. Re2 {[%clk 0:20:03.6]} 19... Rae8 {[%clk 0:17:11]} 20. Bf4 {[%clk 0:17:48.5]} 20... Qe7 {[%clk 0:15:57.5]} 21. Re5 {[%clk 0:15:10.1]} 21... Bd6 {[%clk 0:13:17.9]} 22. Rxe6 {[%clk 0:15:00.5]} 22... Qxe6 {[%clk 0:13:17.2]} 23. Bxd6 {[%clk 0:13:05.4]} 23... Qxd6 {[%clk 0:13:19.1]} 24. c5 {[%clk 0:11:36.8]} 24... Qe6 {[%clk 0:12:31.3]} 25. Kf1 {[%clk 0:11:36]} 25... g5 {[%clk 0:10:11.8]} 26. g4 {[%clk 0:10:42]} 26... Kg7 {[%clk 0:09:45.1]} 27. Qd1 {[%clk 0:08:43.5]} 27... Qc8 {[%clk 0:09:16.4]} 28. Qd2 {[%clk 0:08:02]} 28... Qc7 {[%clk 0:08:24.4]} 29. Kg2 {[%clk 0:07:26]} 29... Kg6 {[%clk 0:07:48.1]} 30. Re1 {[%clk 0:06:58]} 30... Qd7 {[%clk 0:07:03.3]} 31. Rxe8 {[%clk 0:06:31.6]} 31... Qxe8 {[%clk 0:06:14]} 32. Qe3 {[%clk 0:06:19.5]} 32... Qb8 {[%clk 0:05:48.7]} 33. Qe5 {[%clk 0:05:51.3]} 33... Qc8 {[%clk 0:04:58.8]} 34. f4 {[%clk 0:05:27.6]} 34... gxf4 {[%clk 0:03:49.9]} 35. Qxf4 {[%clk 0:05:29.5]} 35... Qe6 {[%clk 0:03:37]} 36. Qe5 {[%clk 0:05:11]} 36... Qd7 {[%clk 0:02:59.6]} 37. Nd2 {[%clk 0:04:52.1]} 37... b5 {[%clk 0:02:22.9]} 38. Nf3 {[%clk 0:04:06.6]} 38... a5 {[%clk 0:01:57.1]} 39. Nh4+ {[%clk 0:04:00.1]} 39... Kg7 {[%clk 0:01:38.5]} 40. Nf5+ {[%clk 0:03:54.8]} 40... Kg6 {[%clk 0:01:14.7]} 41. Ne7+ {[%clk 0:03:24.7]} 41... Kg7 {[%clk 0:01:09.5]} 42. Nf5+ {[%clk 0:02:11]} 42... Kg6 {[%clk 0:01:09.3]} 43. Ne7+ {[%clk 0:02:11.2]} 43... Kg7 {[%clk 0:01:09.1]} 44. Nf5+ {[%clk 0:02:12]} 1/2-1/2

[Event "Live Chess"]
[Site "Chess.com"]
[Date "2021.03.17"]
[Round "4"]
[White "SebbyMeister"]
[Black "Talenuf"]
[Result "0-1"]
[CurrentPosition "8/5p2/8/8/6pp/6k1/8/r5K1 w - -"]
[Timezone "UTC"]
[ECO "C55"]
[ECOUrl "https://www.chess.com/openings/Italian-Game-Two-Knights-Modern-Bishops-Opening"]
[UTCDate "2021.03.17"]
[UTCTime "03:00:57"]
[WhiteElo "1343"]
[BlackElo "1900"]
[TimeControl "2100+2"]
[Termination "Talenuf won by checkmate"]
[StartTime "03:00:57"]
[EndDate "2021.03.17"]
[EndTime "03:41:48"]
[Link "https://www.chess.com/game/live/9689094843"]

1. e4 {[%clk 0:35:02]} 1... e5 {[%clk 0:34:49.3]} 2. Nf3 {[%clk 0:34:54.6]} 2... Nc6 {[%clk 0:34:49.7]} 3. Bc4 {[%clk 0:34:49.8]} 3... Nf6 {[%clk 0:34:49.9]} 4. d3 {[%clk 0:34:49.2]} 4... Be7 {[%clk 0:34:46.5]} 5. Nc3 {[%clk 0:33:57.6]} 5... d6 {[%clk 0:34:40.1]} 6. h3 {[%clk 0:33:49.3]} 6... Na5 {[%clk 0:34:38.3]} 7. Bb3 {[%clk 0:33:49.8]} 7... Nxb3 {[%clk 0:34:39.1]} 8. axb3 {[%clk 0:33:51.5]} 8... O-O {[%clk 0:34:40]} 9. O-O {[%clk 0:33:51.2]} 9... c6 {[%clk 0:34:40.9]} 10. Re1 {[%clk 0:33:46.4]} 10... Qc7 {[%clk 0:34:13.4]} 11. d4 {[%clk 0:32:19.2]} 11... Bd7 {[%clk 0:32:16.2]} 12. Bg5 {[%clk 0:31:19.3]} 12... h6 {[%clk 0:31:30.5]} 13. Bh4 {[%clk 0:31:17.8]} 13... Rfe8 {[%clk 0:31:28.8]} 14. Bg3 {[%clk 0:31:16.3]} 14... Bf8 {[%clk 0:29:01.7]} 15. Bxe5 {[%clk 0:30:57.1]} 15... dxe5 {[%clk 0:29:00.9]} 16. Nxe5 {[%clk 0:30:32]} 16... c5 {[%clk 0:26:53.2]} 17. Nxd7 {[%clk 0:30:13.1]} 17... Qxd7 {[%clk 0:26:34.5]} 18. d5 {[%clk 0:29:44.1]} 18... Bd6 {[%clk 0:25:41.4]} 19. Qf3 {[%clk 0:27:53]} 19... a6 {[%clk 0:25:13.9]} 20. Re2 {[%clk 0:27:45.2]} 20... Re7 {[%clk 0:25:03]} 21. Na4 {[%clk 0:27:07.6]} 21... Rae8 {[%clk 0:24:17.3]} 22. Rae1 {[%clk 0:27:06.3]} 22... Qc7 {[%clk 0:23:52.6]} 23. g3 {[%clk 0:26:33.4]} 23... b5 {[%clk 0:23:17]} 24. Nc3 {[%clk 0:26:31]} 24... Qd7 {[%clk 0:21:34.5]} 25. Qg2 {[%clk 0:26:16.5]} 25... b4 {[%clk 0:19:06.3]} 26. Nb1 {[%clk 0:26:06.8]} 26... Nxd5 {[%clk 0:19:06]} 27. f4 {[%clk 0:25:18]} 27... Nb6 {[%clk 0:17:45.6]} 28. Rd1 {[%clk 0:24:48.1]} 28... Qc6 {[%clk 0:15:52]} 29. Red2 {[%clk 0:24:15.7]} 29... Bc7 {[%clk 0:14:32.1]} 30. e5 {[%clk 0:23:26.7]} 30... Qxg2+ {[%clk 0:14:25.3]} 31. Kxg2 {[%clk 0:23:28.6]} 31... Kf8 {[%clk 0:14:11.4]} 32. c3 {[%clk 0:22:54.2]} 32... a5 {[%clk 0:13:47.6]} 33. Rd3 {[%clk 0:22:27.7]} 33... c4 {[%clk 0:13:29]} 34. bxc4 {[%clk 0:22:16.8]} 34... Nxc4 {[%clk 0:13:27.8]} 35. b3 {[%clk 0:22:17.1]} 35... Nb2 {[%clk 0:13:27.3]} 36. cxb4 {[%clk 0:22:10.9]} 36... Nxd1 {[%clk 0:13:23.7]} 37. bxa5 {[%clk 0:22:00.6]} 37... Rd8 {[%clk 0:13:12.9]} 38. Rxd8+ {[%clk 0:21:49.5]} 38... Bxd8 {[%clk 0:13:11.6]} 39. b4 {[%clk 0:21:50.5]} 39... Rb7 {[%clk 0:12:59.3]} 40. Nd2 {[%clk 0:21:22.9]} 40... Rxb4 {[%clk 0:12:59]} 41. Kf3 {[%clk 0:21:23.5]} 41... Ra4 {[%clk 0:12:54.3]} 42. Ke2 {[%clk 0:21:20.6]} 42... Bxa5 {[%clk 0:12:48.4]} 43. Kxd1 {[%clk 0:21:19.6]} 43... Rd4 {[%clk 0:12:49.4]} 44. Ke2 {[%clk 0:21:19.7]} 44... Rxd2+ {[%clk 0:12:50.4]} 45. Kf3 {[%clk 0:21:21.6]} 45... Ke7 {[%clk 0:12:47.7]} 46. Kg4 {[%clk 0:21:23.5]} 46... g6 {[%clk 0:12:48]} 47. h4 {[%clk 0:21:24.9]} 47... h5+ {[%clk 0:12:42.5]} 48. Kf3 {[%clk 0:21:25.2]} 48... Ke6 {[%clk 0:12:39.3]} 49. Ke3 {[%clk 0:21:24.8]} 49... Kf5 {[%clk 0:12:38.4]} 50. Kf3 {[%clk 0:21:24]} 50... Ra2 {[%clk 0:12:32.1]} 51. Ke3 {[%clk 0:21:22.5]} 51... Bc7 {[%clk 0:12:30.6]} 52. Kf3 {[%clk 0:21:22.4]} 52... Bxe5 {[%clk 0:12:31]} 53. fxe5 {[%clk 0:21:05.4]} 53... Kxe5 {[%clk 0:12:32.1]} 54. g4 {[%clk 0:21:04.4]} 54... Ra3+ {[%clk 0:12:31.5]} 55. Kg2 {[%clk 0:21:03.3]} 55... hxg4 {[%clk 0:12:32.7]} 56. h5 {[%clk 0:21:04.6]} 56... gxh5 {[%clk 0:12:33.5]} 57. Kh2 {[%clk 0:21:06.5]} 57... h4 {[%clk 0:12:33.8]} 58. Kg2 {[%clk 0:21:08.4]} 58... Ra2+ {[%clk 0:12:33.2]} 59. Kh1 {[%clk 0:21:09.7]} 59... Ke4 {[%clk 0:12:33]} 60. Kg1 {[%clk 0:21:10.8]} 60... Kf3 {[%clk 0:12:33.7]} 61. Kh1 {[%clk 0:21:10.7]} 61... Kg3 {[%clk 0:12:34.8]} 62. Kg1 {[%clk 0:21:12]} 62... Ra1# {[%clk 0:12:36.2]} 0-1

[Event "Live Chess"]
[Site "Chess.com"]
[Date "2021.03.17"]
[Round "4"]
[White "prescott00000"]
[Black "mwncklmann"]
[Result "0-1"]
[CurrentPosition "8/8/8/8/8/3k4/1pn2K2/8 w - -"]
[Timezone "UTC"]
[ECO "B53"]
[ECOUrl "https://www.chess.com/openings/Sicilian-Defense-Tartakower-Variation"]
[UTCDate "2021.03.17"]
[UTCTime "03:01:05"]
[WhiteElo "1296"]
[BlackElo "1875"]
[TimeControl "2100+2"]
[Termination "mwncklmann won by resignation"]
[StartTime "03:01:05"]
[EndDate "2021.03.17"]
[EndTime "04:05:08"]
[Link "https://www.chess.com/game/live/9689095167"]

1. e4 {[%clk 0:34:46.4]} 1... c5 {[%clk 0:34:57.7]} 2. Nf3 {[%clk 0:34:46.4]} 2... d6 {[%clk 0:34:58.7]} 3. d4 {[%clk 0:34:46.5]} 3... cxd4 {[%clk 0:34:59.3]} 4. c3 {[%clk 0:34:47.5]} 4... dxc3 {[%clk 0:34:54]} 5. Nxc3 {[%clk 0:34:48.2]} 5... Nc6 {[%clk 0:34:47.3]} 6. Bc4 {[%clk 0:34:46.9]} 6... Nf6 {[%clk 0:34:33.8]} 7. e5 {[%clk 0:33:43.7]} 7... dxe5 {[%clk 0:33:37.2]} 8. Qxd8+ {[%clk 0:33:28.3]} 8... Nxd8 {[%clk 0:31:19.6]} 9. Nxe5 {[%clk 0:33:23.4]} 9... a6 {[%clk 0:31:06.9]} 10. O-O {[%clk 0:32:14.1]} 10... e6 {[%clk 0:30:53.7]} 11. Be3 {[%clk 0:31:53.6]} 11... Bd6 {[%clk 0:30:43.2]} 12. Nf3 {[%clk 0:31:18.2]} 12... b5 {[%clk 0:30:20.6]} 13. Bb3 {[%clk 0:29:39.7]} 13... Bb7 {[%clk 0:30:06.8]} 14. Rfd1 {[%clk 0:29:17.2]} 14... Be7 {[%clk 0:28:30.4]} 15. Nd4 {[%clk 0:28:23.6]} 15... O-O {[%clk 0:27:44.8]} 16. Rac1 {[%clk 0:28:07.1]} 16... Rc8 {[%clk 0:27:09.3]} 17. h3 {[%clk 0:26:54.3]} 17... h6 {[%clk 0:25:02]} 18. Nce2 {[%clk 0:25:25.5]} 18... Rxc1 {[%clk 0:22:05.5]} 19. Rxc1 {[%clk 0:25:23.4]} 19... Bd6 {[%clk 0:21:37.2]} 20. a4 {[%clk 0:22:58.8]} 20... b4 {[%clk 0:19:34.8]} 21. a5 {[%clk 0:21:40.2]} 21... Nd5 {[%clk 0:17:16.8]} 22. Bd2 {[%clk 0:20:53.2]} 22... Ne7 {[%clk 0:15:56.1]} 23. Ba4 {[%clk 0:20:05.7]} 23... e5 {[%clk 0:15:45.2]} 24. Nb3 {[%clk 0:19:17.5]} 24... Ne6 {[%clk 0:12:28.4]} 25. Bd7 {[%clk 0:18:50.5]} 25... Nf4 {[%clk 0:08:58.7]} 26. Nxf4 {[%clk 0:18:21.2]} 26... exf4 {[%clk 0:09:00.6]} 27. Nc5 {[%clk 0:17:53.8]} 27... Rd8 {[%clk 0:08:33.3]} 28. Nxb7 {[%clk 0:17:28.3]} 28... Rxd7 {[%clk 0:08:33.9]} 29. Nxd6 {[%clk 0:17:24]} 29... Rxd6 {[%clk 0:08:35.1]} 30. Bxb4 {[%clk 0:17:19.3]} 30... Rc6 {[%clk 0:08:26.9]} 31. Rxc6 {[%clk 0:16:02.7]} 31... Nxc6 {[%clk 0:08:28.8]} 32. Bd6 {[%clk 0:15:53.3]} 32... g5 {[%clk 0:08:26.9]} 33. Bc7 {[%clk 0:15:52.5]} 33... Kf8 {[%clk 0:08:19.7]} 34. g3 {[%clk 0:15:50.3]} 34... fxg3 {[%clk 0:08:13.1]} 35. fxg3 {[%clk 0:15:49.6]} 35... Ke7 {[%clk 0:08:14]} 36. Kf2 {[%clk 0:15:41.5]} 36... Ke6 {[%clk 0:08:09.4]} 37. Ke3 {[%clk 0:15:22.3]} 37... Kd5 {[%clk 0:08:05.5]} 38. Kd3 {[%clk 0:14:10.5]} 38... f5 {[%clk 0:07:30.5]} 39. h4 {[%clk 0:12:58.4]} 39... Kc5 {[%clk 0:05:58.1]} 40. hxg5 {[%clk 0:12:25.5]} 40... hxg5 {[%clk 0:05:57]} 41. g4 {[%clk 0:11:36.7]} 41... fxg4 {[%clk 0:04:31.9]} 42. Ke3 {[%clk 0:11:10.8]} 42... Kb5 {[%clk 0:04:21.6]} 43. Bb6 {[%clk 0:10:39.6]} 43... Nxa5 {[%clk 0:04:01.7]} 44. Bd8 {[%clk 0:10:32.8]} 44... Nc4+ {[%clk 0:04:01]} 45. Ke2 {[%clk 0:10:28.8]} 45... Nxb2 {[%clk 0:04:00.3]} 46. Bxg5 {[%clk 0:10:29.4]} 46... a5 {[%clk 0:03:59.1]} 47. Kf2 {[%clk 0:10:08.9]} 47... a4 {[%clk 0:03:57]} 48. Be7 {[%clk 0:10:03.6]} 48... Nd3+ {[%clk 0:03:46.6]} 49. Kg3 {[%clk 0:09:58]} 49... Nb4 {[%clk 0:03:26.1]} 50. Kxg4 {[%clk 0:09:41.6]} 50... a3 {[%clk 0:03:26.6]} 51. Bf6 {[%clk 0:09:38.6]} 51... Kc4 {[%clk 0:03:23.8]} 52. Kf3 {[%clk 0:09:03.1]} 52... Kd3 {[%clk 0:03:21.3]} 53. Kf2 {[%clk 0:08:16.8]} 53... Nc2 {[%clk 0:02:36.1]} 54. Bb2 {[%clk 0:07:26.2]} 54... axb2 {[%clk 0:02:35.4]} 0-1

[Event "Live Chess"]
[Site "Chess.com"]
[Date "2021.03.17"]
[Round "4"]
[White "twangbio"]
[Black "pjkrizzle"]
[Result "1-0"]
[CurrentPosition "8/pp4k1/4pqQp/P2p2pP/8/1P6/2r2PP1/R3R1K1 b - -"]
[Timezone "UTC"]
[ECO "C05"]
[ECOUrl "https://www.chess.com/openings/French-Defense-Tarrasch-Closed...5.Bd3-c5-6.c3-Nc6-7.Ne2"]
[UTCDate "2021.03.17"]
[UTCTime "03:01:15"]
[WhiteElo "1878"]
[BlackElo "1293"]
[TimeControl "2100+2"]
[Termination "twangbio won by resignation"]
[StartTime "03:01:15"]
[EndDate "2021.03.17"]
[EndTime "03:48:41"]
[Link "https://www.chess.com/game/live/9689095473"]

1. e4 {[%clk 0:34:58.7]} 1... e6 {[%clk 0:34:53.5]} 2. d4 {[%clk 0:34:58.5]} 2... d5 {[%clk 0:34:51.1]} 3. Nd2 {[%clk 0:34:58.3]} 3... Nf6 {[%clk 0:34:17]} 4. e5 {[%clk 0:34:57.4]} 4... Nfd7 {[%clk 0:34:14.7]} 5. Bd3 {[%clk 0:34:56]} 5... c5 {[%clk 0:34:10.1]} 6. c3 {[%clk 0:34:55.8]} 6... Nc6 {[%clk 0:34:05]} 7. Ne2 {[%clk 0:34:51.5]} 7... Qb6 {[%clk 0:33:58.9]} 8. Nf3 {[%clk 0:34:48.4]} 8... cxd4 {[%clk 0:33:45.1]} 9. cxd4 {[%clk 0:34:45]} 9... Bb4+ {[%clk 0:33:26.3]} 10. Bd2 {[%clk 0:34:27.5]} 10... Bxd2+ {[%clk 0:33:19.5]} 11. Qxd2 {[%clk 0:34:26]} 11... h6 {[%clk 0:33:02.5]} 12. O-O {[%clk 0:34:09.3]} 12... O-O {[%clk 0:32:49.7]} 13. Ng3 {[%clk 0:33:33.9]} 13... Nxd4 {[%clk 0:32:29.1]} 14. Nxd4 {[%clk 0:33:28.9]} 14... Nxe5 {[%clk 0:32:27.4]} 15. Bc2 {[%clk 0:31:51.9]} 15... Nc4 {[%clk 0:32:16.3]} 16. Qd3 {[%clk 0:31:37.4]} 16... g6 {[%clk 0:31:37.3]} 17. b3 {[%clk 0:30:48]} 17... Nd6 {[%clk 0:31:07.1]} 18. Qd2 {[%clk 0:30:05]} 18... Kg7 {[%clk 0:30:50.9]} 19. a4 {[%clk 0:29:00.1]} 19... Bd7 {[%clk 0:29:57.7]} 20. Qd3 {[%clk 0:28:03.4]} 20... Rac8 {[%clk 0:29:23.2]} 21. a5 {[%clk 0:27:13]} 21... Qd8 {[%clk 0:28:02.3]} 22. Nf3 {[%clk 0:26:21.7]} 22... Kg8 {[%clk 0:26:18.6]} 23. Rfc1 {[%clk 0:24:58.8]} 23... Bb5 {[%clk 0:25:34]} 24. Qe3 {[%clk 0:23:54.1]} 24... Kg7 {[%clk 0:24:48.6]} 25. Qe5+ {[%clk 0:21:20.2]} 25... Kg8 {[%clk 0:24:25.4]} 26. h4 {[%clk 0:18:49.2]} 26... Qe7 {[%clk 0:23:31.9]} 27. h5 {[%clk 0:17:49.1]} 27... f6 {[%clk 0:23:15.5]} 28. Qe3 {[%clk 0:17:32.3]} 28... g5 {[%clk 0:22:41.8]} 29. Nd4 {[%clk 0:16:58.4]} 29... Bd7 {[%clk 0:21:39.6]} 30. Qd3 {[%clk 0:13:16.6]} 30... f5 {[%clk 0:20:50.5]} 31. Re1 {[%clk 0:12:59.2]} 31... Rf6 {[%clk 0:20:11.3]} 32. Ndxf5 {[%clk 0:11:21.6]} 32... Nxf5 {[%clk 0:19:54.4]} 33. Nxf5 {[%clk 0:11:19.7]} 33... Qf8 {[%clk 0:18:57.7]} 34. Ne3 {[%clk 0:10:38.2]} 34... Qf7 {[%clk 0:18:32]} 35. Ng4 {[%clk 0:10:29.4]} 35... Bb5 {[%clk 0:17:26.2]} 36. Nxf6+ {[%clk 0:09:57.4]} 36... Qxf6 {[%clk 0:17:20.9]} 37. Qxb5 {[%clk 0:09:20.8]} 37... Rxc2 {[%clk 0:17:17.8]} 38. Qe8+ {[%clk 0:09:16.1]} 38... Kg7 {[%clk 0:17:15]} 39. Qg6+ {[%clk 0:08:24.5]} 1-0

[Event "Live Chess"]
[Site "Chess.com"]
[Date "2021.03.17"]
[Round "4"]
[White "nmbrown2"]
[Black "A-boy415"]
[Result "0-1"]
[CurrentPosition "r4rk1/pq3pbp/n1p2np1/4p1B1/2P1P3/2N2B2/PP3PPP/R4RK1 w - -"]
[Timezone "UTC"]
[ECO "E90"]
[ECOUrl "https://www.chess.com/openings/Kings-Indian-Defense-Normal-Variation-4.e4-d6-5.Nf3-O-O-6.Bd3"]
[UTCDate "2021.03.17"]
[UTCTime "03:01:23"]
[WhiteElo "1495"]
[BlackElo "1831"]
[TimeControl "2100+2"]
[Termination "A-boy415 won by resignation"]
[StartTime "03:01:23"]
[EndDate "2021.03.17"]
[EndTime "03:08:21"]
[Link "https://www.chess.com/game/live/9689095819"]

1. d4 {[%clk 0:34:55.7]} 1... Nf6 {[%clk 0:34:47.8]} 2. c4 {[%clk 0:34:53.1]} 2... g6 {[%clk 0:34:47.4]} 3. Nc3 {[%clk 0:34:47.7]} 3... Bg7 {[%clk 0:34:46.8]} 4. e4 {[%clk 0:34:45.3]} 4... d6 {[%clk 0:34:45.2]} 5. Nf3 {[%clk 0:34:41.6]} 5... O-O {[%clk 0:34:41.3]} 6. Bd3 {[%clk 0:34:03.6]} 6... e5 {[%clk 0:34:38.1]} 7. dxe5 {[%clk 0:33:46.6]} 7... dxe5 {[%clk 0:34:37.3]} 8. O-O {[%clk 0:33:40.8]} 8... Bg4 {[%clk 0:34:31.8]} 9. Be2 {[%clk 0:33:19.1]} 9... Qe7 {[%clk 0:34:15.6]} 10. Bg5 {[%clk 0:32:48.5]} 10... c6 {[%clk 0:32:59.1]} 11. Qb3 {[%clk 0:32:20.7]} 11... Bxf3 {[%clk 0:32:33.6]} 12. Bxf3 {[%clk 0:32:16.7]} 12... Na6 {[%clk 0:32:22.8]} 13. Qxb7 {[%clk 0:31:45.4]} 13... Qxb7 {[%clk 0:32:19.5]} 0-1

[Event "Live Chess"]
[Site "Chess.com"]
[Date "2021.03.17"]
[Round "4"]
[White "chessappeals"]
[Black "bigchampionofchess"]
[Result "1-0"]
[CurrentPosition "1K6/1B6/Q7/1k6/8/8/P7/8 b - -"]
[Timezone "UTC"]
[ECO "D05"]
[ECOUrl "https://www.chess.com/openings/Colle-System-3...e6"]
[UTCDate "2021.03.17"]
[UTCTime "03:00:59"]
[WhiteElo "1783"]
[BlackElo "1610"]
[TimeControl "2100+2"]
[Termination "chessappeals won by resignation"]
[StartTime "03:00:59"]
[EndDate "2021.03.17"]
[EndTime "04:11:52"]
[Link "https://www.chess.com/game/live/9689096135"]

1. d4 {[%clk 0:34:57.9]} 1... Nf6 {[%clk 0:34:59.2]} 2. Nf3 {[%clk 0:34:51.5]} 2... e6 {[%clk 0:34:46]} 3. e3 {[%clk 0:34:41.1]} 3... d5 {[%clk 0:34:34]} 4. Bd3 {[%clk 0:34:33.1]} 4... Be7 {[%clk 0:34:10.7]} 5. Nbd2 {[%clk 0:34:25.3]} 5... Nbd7 {[%clk 0:33:56.6]} 6. O-O {[%clk 0:34:10.9]} 6... O-O {[%clk 0:33:51.7]} 7. e4 {[%clk 0:32:32.9]} 7... dxe4 {[%clk 0:33:29]} 8. Nxe4 {[%clk 0:32:27.2]} 8... Nxe4 {[%clk 0:33:06]} 9. Bxe4 {[%clk 0:32:23.2]} 9... Nf6 {[%clk 0:33:03.9]} 10. Bd3 {[%clk 0:31:55.3]} 10... c5 {[%clk 0:32:21]} 11. dxc5 {[%clk 0:30:43.8]} 11... Bxc5 {[%clk 0:32:16.5]} 12. Bg5 {[%clk 0:29:51]} 12... h6 {[%clk 0:31:46]} 13. Bh4 {[%clk 0:28:29.7]} 13... Be7 {[%clk 0:31:27.5]} 14. Qe2 {[%clk 0:26:54.7]} 14... Bd7 {[%clk 0:30:26.1]} 15. Ne5 {[%clk 0:23:47.1]} 15... Bc6 {[%clk 0:27:17.4]} 16. Nxc6 {[%clk 0:21:37]} 16... bxc6 {[%clk 0:27:16.6]} 17. Bxf6 {[%clk 0:19:35.5]} 17... Bxf6 {[%clk 0:27:08]} 18. Rfd1 {[%clk 0:15:32.4]} 18... Qc7 {[%clk 0:26:12.2]} 19. c3 {[%clk 0:14:17.3]} 19... a5 {[%clk 0:23:52.3]} 20. Qe4 {[%clk 0:11:31.5]} 20... g6 {[%clk 0:23:35.7]} 21. Qf3 {[%clk 0:11:09.8]} 21... Bg7 {[%clk 0:23:08.1]} 22. Be4 {[%clk 0:10:45.5]} 22... Rfc8 {[%clk 0:21:41.3]} 23. Rd2 {[%clk 0:10:07.7]} 23... Rd8 {[%clk 0:20:01.3]} 24. Rad1 {[%clk 0:09:18.5]} 24... Rxd2 {[%clk 0:19:08.1]} 25. Rxd2 {[%clk 0:09:16.5]} 25... Rc8 {[%clk 0:18:32.8]} 26. Qd3 {[%clk 0:07:54.3]} 26... Bf6 {[%clk 0:16:52.6]} 27. Qd7 {[%clk 0:05:31.8]} 27... Qxd7 {[%clk 0:16:29.3]} 28. Rxd7 {[%clk 0:05:27.8]} 28... Rb8 {[%clk 0:13:16.8]} 29. Rd2 {[%clk 0:05:12.8]} 29... c5 {[%clk 0:13:02.9]} 30. Kf1 {[%clk 0:04:41.1]} 30... a4 {[%clk 0:12:54]} 31. Rc2 {[%clk 0:04:10.7]} 31... Rd8 {[%clk 0:11:30]} 32. Ke2 {[%clk 0:03:54.6]} 32... Bg5 {[%clk 0:11:12.4]} 33. Bc6 {[%clk 0:03:43]} 33... a3 {[%clk 0:10:22.1]} 34. bxa3 {[%clk 0:03:38.3]} 34... Rd6 {[%clk 0:10:18.9]} 35. Bb5 {[%clk 0:03:32.3]} 35... Bf6 {[%clk 0:09:29]} 36. a4 {[%clk 0:03:28.1]} 36... Bd8 {[%clk 0:08:54.1]} 37. Rd2 {[%clk 0:03:21.8]} 37... Rxd2+ {[%clk 0:08:52.5]} 38. Kxd2 {[%clk 0:03:21.7]} 38... Kf8 {[%clk 0:08:47.8]} 39. Kd3 {[%clk 0:03:17.8]} 39... Ke7 {[%clk 0:08:48.6]} 40. Kc4 {[%clk 0:03:13.3]} 40... Kd6 {[%clk 0:08:48.6]} 41. Be8 {[%clk 0:03:04]} 41... Ke7 {[%clk 0:08:34.8]} 42. Bc6 {[%clk 0:03:00]} 42... Kd6 {[%clk 0:08:22.7]} 43. Kb5 {[%clk 0:02:56.1]} 43... Kc7 {[%clk 0:07:23.6]} 44. Kxc5 {[%clk 0:02:48.3]} 44... Bf6 {[%clk 0:07:02.4]} 45. Be8 {[%clk 0:02:38.5]} 45... Bxc3 {[%clk 0:06:46.3]} 46. Bxf7 {[%clk 0:02:38.3]} 46... g5 {[%clk 0:06:44.3]} 47. Bxe6 {[%clk 0:02:37.2]} 47... Be1 {[%clk 0:06:26.9]} 48. f3 {[%clk 0:02:35.4]} 48... Bd2 {[%clk 0:06:13.6]} 49. Kb5 {[%clk 0:02:32.9]} 49... h5 {[%clk 0:05:45]} 50. a5 {[%clk 0:02:30]} 50... h4 {[%clk 0:05:28.1]} 51. a6 {[%clk 0:02:24.7]} 51... Kb8 {[%clk 0:05:27.3]} 52. Bd5 {[%clk 0:02:17.3]} 52... Ka7 {[%clk 0:05:22.2]} 53. Bb7 {[%clk 0:02:14.9]} 53... Be3 {[%clk 0:05:14.3]} 54. Kc4 {[%clk 0:02:12.9]} 54... Kb6 {[%clk 0:05:01.5]} 55. Kd3 {[%clk 0:02:12.3]} 55... Bf4 {[%clk 0:04:56.9]} 56. Ke4 {[%clk 0:02:10.6]} 56... Ka7 {[%clk 0:04:56.8]} 57. Kf5 {[%clk 0:02:10.4]} 57... Kb6 {[%clk 0:04:53.9]} 58. Kg4 {[%clk 0:02:07.9]} 58... Ka7 {[%clk 0:04:51.4]} 59. g3 {[%clk 0:02:04.7]} 59... hxg3 {[%clk 0:04:49]} 60. hxg3 {[%clk 0:02:04.5]} 60... Bd2 {[%clk 0:04:47.7]} 61. f4 {[%clk 0:02:02.3]} 61... gxf4 {[%clk 0:04:47.1]} 62. gxf4 {[%clk 0:02:02.1]} 62... Bc3 {[%clk 0:04:28.2]} 63. f5 {[%clk 0:02:01.3]} 63... Bf6 {[%clk 0:04:26.1]} 64. Kh5 {[%clk 0:02:00.5]} 64... Bd4 {[%clk 0:04:16.8]} 65. Kg6 {[%clk 0:01:59.4]} 65... Bc5 {[%clk 0:04:16.4]} 66. f6 {[%clk 0:01:56.9]} 66... Bb4 {[%clk 0:04:14.6]} 67. f7 {[%clk 0:01:55.7]} 67... Ba3 {[%clk 0:04:05.8]} 68. Kg7 {[%clk 0:01:54.7]} 68... Bb2+ {[%clk 0:04:03.5]} 69. Kg8 {[%clk 0:01:54.7]} 69... Ba3 {[%clk 0:04:04.2]} 70. f8=Q {[%clk 0:01:54]} 70... Bxf8 {[%clk 0:04:04.9]} 71. Kxf8 {[%clk 0:01:54.5]} 71... Kb8 {[%clk 0:04:05.1]} 72. Ke7 {[%clk 0:01:53.3]} 72... Ka7 {[%clk 0:04:06.2]} 73. Kd6 {[%clk 0:01:53.2]} 73... Kb8 {[%clk 0:04:07.2]} 74. Kc6 {[%clk 0:01:50.9]} 74... Ka7 {[%clk 0:04:07.1]} 75. Kb5 {[%clk 0:01:47.5]} 75... Kb8 {[%clk 0:04:07.4]} 76. Kc6 {[%clk 0:01:34.9]} 76... Ka7 {[%clk 0:04:07.3]} 77. Kd7 {[%clk 0:01:33.9]} 77... Kb8 {[%clk 0:04:07.5]} 78. Kd8 {[%clk 0:01:31]} 78... Ka7 {[%clk 0:04:07.1]} 79. Kc8 {[%clk 0:01:29]} 79... Kb6 {[%clk 0:04:07.8]} 80. Kb8 {[%clk 0:01:27.8]} 80... Kb5 {[%clk 0:03:59.3]} 81. a7 {[%clk 0:01:27.2]} 81... Kb6 {[%clk 0:03:54.7]} 82. a8=Q {[%clk 0:01:26.2]} 82... Kb5 {[%clk 0:03:55.2]} 83. Qa6+ {[%clk 0:01:26]} 1-0